[Event "9th RTU Rapid 2019"]
[Site "Riga"]
[Date "2019.08.04"]
[Round "6.19"]
[White "Chibukhchyan, Erik"]
[Black "Shailesh, Dravid"]
[Result "1/2-1/2"]
[WhiteElo "2231"]
[BlackElo "2134"]
[PlyCount "306"]
[EventDate "2019.08.05"]
[EventType "swiss"]
[EventCountry "LAT"]
[TimeControl "5400+30"]
[WhiteClock "0:00:33"]
[BlackClock "0:00:08"]

1. e4 {[%emt 1:15:24]} c5 {[%emt 1:15:47]} 2. Nf3 {[%emt 0:00:27]} d6 {[%emt 0:00:26]} 3. d4 {[%emt 0:00:26]} Nf6 {[%emt 0:00:26]} 4. Nc3 {[%emt 0:01:30]} cxd4 {[%emt 0:00:26]} 5. Qxd4 {[%emt 0:00:29]} Nc6 {[%emt 0:00:28]} 6. Bb5 {[%emt 0:00:26]} Bd7 {[%emt 0:00:26]} 7. Bxc6 {[%emt 0:00:26]} Bxc6 {[%emt 0:00:26]} 8. O-O {[%emt 0:00:36]} e6 {[%emt 0:00:29]} 9. Bg5 {[%emt 0:00:32]} Be7 {[%emt 0:00:26]} 10. Rfd1 {[%emt 0:00:26]} O-O {[%emt 0:00:31]} 11. a4 {[%emt 0:00:39]} h6 {[%emt 0:00:35]} 12. Bh4 {[%emt 0:00:33]} a6 {[%emt 0:00:56]} 13. a5 {[%emt 0:00:36]} Qc7 {[%emt 0:00:30]} 14. Bg3 {[%emt 0:00:38]} Rfd8 {[%emt 0:00:36]} 15. Nd2 {[%emt 0:00:38]} e5 {[%emt 0:00:53]} 16. Qe3 {[%emt 0:00:35]} Bd7 {[%emt 0:00:45]} 17. Nf1 {[%emt 0:02:12]} Be6 {[%emt 0:00:37]} 18. Qe2 {[%emt 0:00:41]} b6 {[%emt 0:00:39]} 19. Ne3 {[%emt 0:00:50]} bxa5 {[%emt 0:01:04]} 20. Ned5 {[%emt 0:00:42]} Nxd5 {[%emt 0:00:31]} 21. Nxd5 {[%emt 0:00:26]} Bxd5 {[%emt 0:00:27]} 22. Rxd5 {[%emt 0:00:27]} Rab8 {[%emt 0:00:30]} 23. c3 {[%emt 0:00:35]} Qb6 {[%emt 0:00:44]} 24. Ra2 {[%emt 0:00:34]} a4 {[%emt 0:00:32]} 25. Qc4 {[%emt 0:01:55]} a3 {[%emt 0:01:03]} 26. b4 {[%emt 0:00:38]} Rdc8 {[%emt 0:00:52]} 27. Qd3 {[%emt 0:00:32]} Qc6 {[%emt 0:00:53]} 28. Rxa3 {[%emt 0:01:36]} Rxb4 {[%emt 0:00:26]} 29. h4 {[%emt 0:01:16]} Rc4 {[%emt 0:00:44]} 30. Rda5 {[%emt 0:00:36]} Qxe4 {[%emt 0:01:38]} 31. Qxe4 {[%emt 0:00:31]} Rxe4 32. Rxa6 {[%emt 0:00:01]} f5 {[%emt 0:01:24]} 33. Ra7 {[%emt 0:00:50]} Bf8 {[%emt 0:00:53]} 34. h5 {[%emt 0:00:54]} Rec4 {[%emt 0:00:40]} 35. Rd7 {[%emt 0:00:35]} Rxc3 {[%emt 0:00:31]} 36. Raa7 {[%emt 0:00:26]} f4 {[%emt 0:00:11]} 37. Bh4 Re8 {[%emt 0:00:58]} 38. f3 {[%emt 0:01:13]} Rd3 {[%emt 0:00:35]} 39. Kh2 {[%emt 0:00:50]} Rd2 {[%emt 0:00:35]} 40. Kh3 {[%emt 0:00:27]} d5 {[%emt 0:01:21]} 41. Be1 {[%emt 0:00:57]} Rd1 {[%emt 0:00:40]} 42. Bb4 {[%emt 0:00:42]} Rh1+ {[%emt 0:00:41]} 43. Kg4 {[%emt 0:00:27]} Rh2 {[%emt 0:00:37]} 44. g3 {[%emt 0:00:56]} Rg2 {[%emt 0:00:30]} 45. Be1 {[%emt 0:00:26]} Kh8 {[%emt 0:02:16]} 46. Rxd5 {[%emt 0:00:37]} fxg3 {[%emt 0:01:59]} 47. Bxg3 {[%emt 0:00:45]} e4 {[%emt 0:00:26]} 48. fxe4 {[%emt 0:00:37]} Rxe4+ {[%emt 0:00:26]} 49. Kf3 {[%emt 0:00:25]} Rge2 {[%emt 0:00:28]} 50. Ra8 {[%emt 0:00:45]} R2e3+ {[%emt 0:00:41]} 51. Kf2 {[%emt 0:00:37]} Re2+ {[%emt 0:00:40]} 52. Kf1 {[%emt 0:00:29]} Re8 {[%emt 0:00:38]} 53. Rdd8 {[%emt 0:00:27]} Rxd8 {[%emt 0:00:48]} 54. Rxd8 {[%emt 0:00:26]} Ra2 {[%emt 0:00:35]} 55. Rxf8+ {[%emt 0:00:27]} Kh7 {[%emt 0:00:26]} 56. Rf5 {[%emt 0:00:36]} Rb2 {[%emt 0:00:32]} 57. Bf2 {[%emt 0:00:38]} Ra2 {[%emt 0:00:32]} 58. Kg2 {[%emt 0:00:26]} Ra6 {[%emt 0:00:27]} 59. Bd4 {[%emt 0:00:45]} Rd6 {[%emt 0:00:38]} 60. Be5 {[%emt 0:00:42]} Re6 {[%emt 0:00:30]} 61. Bd4 {[%emt 0:00:58]} Kg8 {[%emt 0:00:36]} 62. Kg3 {[%emt 0:01:23]} g5 {[%emt 0:00:27]} 63. hxg6 {[%emt 0:00:26]} Rxg6+ {[%emt 0:00:26]} 64. Kh4 {[%emt 0:00:27]} Rg5 {[%emt 0:00:31]} 65. Rf6 {[%emt 0:00:28]} Kh7 {[%emt 0:00:28]} 66. Be3 {[%emt 0:00:41]} Rg6 {[%emt 0:00:27]} 67. Rf7+ {[%emt 0:00:30]} Rg7 {[%emt 0:00:26]} 68. Rf6 {[%emt 0:00:25]} Rg6 {[%emt 0:00:26]} 69. Rf5 {[%emt 0:00:26]} Re6 {[%emt 0:00:27]} 70. Bf4 {[%emt 0:00:26]} Kg6 {[%emt 0:00:26]} 71. Rc5 {[%emt 0:00:38]} Re4 {[%emt 0:00:28]} 72. Kg3 {[%emt 0:00:25]} Re6 {[%emt 0:00:25]} 73. Kg4 {[%emt 0:00:29]} Ra6 {[%emt 0:00:29]} 74. Rh5 {[%emt 0:00:27]} Kg7 {[%emt 0:00:30]} 75. Be5+ {[%emt 0:00:55]} Kg6 {[%emt 0:00:26]} 76. Bf4 {[%emt 0:00:26]} Ra4 {[%emt 0:00:31]} 77. Rxh6+ {[%emt 0:00:27]} Kg7 {[%emt 0:00:28]} 78. Rc6 {[%emt 0:00:28]} Ra5 {[%emt 0:00:32]} 79. Bg5 {[%emt 0:00:29]} Kf7 {[%emt 0:00:27]} 80. Rf6+ {[%emt 0:00:30]} Kg7 {[%emt 0:00:26]} 81. Rb6 {[%emt 0:00:49]} Kf7 {[%emt 0:00:39]} 82. Bf4 {[%emt 0:00:36]} Rc5 {[%emt 0:00:27]} 83. Kf3 {[%emt 0:00:27]} Rc4 {[%emt 0:00:33]} 84. Be5 {[%emt 0:00:30]} Ra4 {[%emt 0:00:27]} 85. Ke3 {[%emt 0:00:27]} Ke7 {[%emt 0:00:28]} 86. Bd4 {[%emt 0:00:27]} Kd7 {[%emt 0:00:27]} 87. Ke4 {[%emt 0:00:27]} Ra5 {[%emt 0:00:28]} 88. Be5 {[%emt 0:00:28]} Ra2 {[%emt 0:00:34]} 89. Kd5 {[%emt 0:00:33]} Ra5+ {[%emt 0:00:27]} 90. Ke4 {[%emt 0:00:27]} Ra2 {[%emt 0:00:26]} 91. Bd4 {[%emt 0:00:27]} Ra5 {[%emt 0:00:27]} 92. Rg6 {[%emt 0:00:28]} Ke7 {[%emt 0:00:29]} 93. Be5 {[%emt 0:00:27]} Ra2 {[%emt 0:00:45]} 94. Kf5 {[%emt 0:00:35]} Kd7 {[%emt 0:00:30]} 95. Rd6+ {[%emt 0:00:29]} Ke7 {[%emt 0:00:26]} 96. Rh6 {[%emt 0:00:32]} Kd7 {[%emt 0:00:34]} 97. Ke4 {[%emt 0:00:44]} Ra4+ {[%emt 0:00:32]} 98. Bd4 {[%emt 0:00:26]} Ra5 {[%emt 0:00:26]} 99. Kd3 {[%emt 0:00:34]} Rf5 {[%emt 0:00:44]} 100. Ke4 {[%emt 0:00:28]} Ra5 {[%emt 0:00:26]} 101. Rh7+ {[%emt 0:00:47]} Ke6 {[%emt 0:00:32]} 102. Rb7 {[%emt 0:00:26]} Rh5 {[%emt 0:00:30]} 103. Rb6+ {[%emt 0:00:27]} Ke7 {[%emt 0:00:28]} 104. Be5 {[%emt 0:00:27]} Rh1 {[%emt 0:00:44]} 105. Bf6+ {[%emt 0:01:02]} Kf7 {[%emt 0:00:32]} 106. Bg5 {[%emt 0:00:32]} Re1+ {[%emt 0:00:32]} 107. Kf5 {[%emt 0:00:27]} Rf1+ {[%emt 0:00:26]} 108. Bf4 {[%emt 0:00:25]} Ke7 {[%emt 0:00:26]} 109. Rb7+ {[%emt 0:00:28]} Kd8 {[%emt 0:00:27]} 110. Kg5 {[%emt 0:00:46]} Kc8 {[%emt 0:00:29]} 111. Rc7+ {[%emt 0:00:27]} Kd8 {[%emt 0:00:26]} 112. Rf7 {[%emt 0:00:33]} Ke8 {[%emt 0:00:45]} 113. Kg6 {[%emt 0:01:01]} Rg1+ {[%emt 0:00:31]} 114. Kf6 {[%emt 0:00:26]} Rf1 {[%emt 0:00:33]} 115. Re7+ {[%emt 0:00:27]} Kd8 {[%emt 0:00:29]} 116. Re4 {[%emt 0:00:27]} Kd7 {[%emt 0:00:27]} 117. Rc4 {[%emt 0:00:27]} Rf2 {[%emt 0:00:32]} 118. Kf5 {[%emt 0:01:05]} Rf1 {[%emt 0:00:32]} 119. Rc7+ {[%emt 0:00:28]} Kd8 {[%emt 0:00:26]} 120. Rc4 {[%emt 0:00:26]} Kd7 {[%emt 0:00:28]} 121. Kf6 {[%emt 0:00:46]} Rf2 {[%emt 0:00:29]} 122. Ke5 {[%emt 0:00:41]} Re2+ {[%emt 0:00:50]} 123. Kd5 {[%emt 0:00:26]} Rf2 {[%emt 0:00:29]} 124. Be5 {[%emt 0:00:58]} Rd2+ {[%emt 0:00:35]} 125. Bd4 {[%emt 0:00:26]} Rh2 {[%emt 0:00:30]} 126. Ra4 {[%emt 0:00:29]} Rd2 {[%emt 0:00:28]} 127. Ra7+ {[%emt 0:00:26]} Kd8 {[%emt 0:00:30]} 128. Kc5 {[%emt 0:00:31]} Ke8 {[%emt 0:00:30]} 129. Kd5 {[%emt 0:00:26]} Kd8 {[%emt 0:00:27]} 130. Ke5 {[%emt 0:00:26]} Kc8 {[%emt 0:00:28]} 131. Ra4 {[%emt 0:00:30]} Kb7 {[%emt 0:00:32]} 132. Kd6 {[%emt 0:00:29]} Rd1 {[%emt 0:00:30]} 133. Rb4+ {[%emt 0:00:25]} Kc8 {[%emt 0:01:25]} 134. Kc6 {[%emt 0:00:51]} Rh1 {[%emt 0:00:58]} 135. Bc5 {[%emt 0:00:34]} Rh7 {[%emt 0:00:43]} 136. Bd6 {[%emt 0:00:43]} Rc7+ {[%emt 0:00:26]} 137. Kd5 {[%emt 0:00:25]} Rb7 {[%emt 0:00:26]} 138. Rh4 {[%emt 0:00:28]} Rg7 {[%emt 0:00:35]} 139. Rh8+ {[%emt 0:00:38]} Kd7 {[%emt 0:00:34]} 140. Be5 {[%emt 0:00:26]} Rg1 {[%emt 0:01:08]} 141. Rh7+ {[%emt 0:00:27]} Kd8 {[%emt 0:00:45]} 142. Bd6 {[%emt 0:00:36]} Rd1+ {[%emt 0:00:39]} 143. Kc6 {[%emt 0:00:30]} Rc1+ {[%emt 0:00:35]} 144. Bc5 {[%emt 0:00:26]} Ke8 {[%emt 0:00:34]} 145. Re7+ {[%emt 0:00:25]} Kd8 {[%emt 0:00:26]} 146. Rf7 {[%emt 0:00:26]} Re1 {[%emt 0:00:50]} 147. Rf8+ {[%emt 0:00:26]} Re8 {[%emt 0:00:28]} 148. Rf6 {[%emt 0:00:48]} Re1 {[%emt 0:00:28]} 149. Rf8+ {[%emt 0:00:29]} Re8 {[%emt 0:00:27]} 150. Rf7 {[%emt 0:00:26]} Re1 {[%emt 0:00:30]} 151. Rf8+ {[%emt 0:00:40]} Re8 {[%emt 0:00:26]} 152. Rf1 {[%emt 0:00:32]} Re2 {[%emt 0:01:04]} 153. Rf8+ {[%emt 0:00:01]} Re8 {[%emt 0:00:01]} 1/2-1/2

[Event "9th RTU Rapid 2019"]
[Site "Riga"]
[Date "2019.08.04"]
[Round "6.20"]
[White "Damen, Jip"]
[Black "Jeet, Jain"]
[Result "1-0"]
[WhiteElo "2179"]
[BlackElo "1828"]
[PlyCount "81"]
[EventDate "2019.08.05"]
[EventType "swiss"]
[EventCountry "LAT"]
[TimeControl "5400+30"]
[WhiteClock "0:02:50"]
[BlackClock "0:06:28"]

1. e4 {[%emt 1:15:21]} e5 {[%emt 1:15:22]} 2. Nf3 {[%emt 0:00:26]} Nc6 {[%emt 0:00:26]} 3. Bb5 {[%emt 0:00:27]} a6 {[%emt 0:00:26]} 4. Ba4 {[%emt 0:00:25]} Nf6 {[%emt 0:00:26]} 5. O-O {[%emt 0:00:29]} Be7 {[%emt 0:00:29]} 6. d3 {[%emt 0:00:30]} b5 {[%emt 0:00:27]} 7. Bb3 {[%emt 0:00:26]} d6 {[%emt 0:00:26]} 8. a3 {[%emt 0:00:27]} O-O {[%emt 0:00:33]} 9. Nc3 {[%emt 0:00:26]} h6 {[%emt 0:00:26]} 10. Nd5 {[%emt 0:00:39]} Na5 {[%emt 0:00:41]} 11. Ba2 {[%emt 0:00:30]} Nxd5 {[%emt 0:00:32]} 12. Bxd5 {[%emt 0:00:27]} c6 {[%emt 0:00:26]} 13. Ba2 {[%emt 0:00:26]} Be6 {[%emt 0:00:43]} 14. Bxe6 {[%emt 0:00:49]} fxe6 {[%emt 0:00:27]} 15. d4 {[%emt 0:00:26]} exd4 {[%emt 0:00:51]} 16. Nxd4 {[%emt 0:00:27]} Qc8 {[%emt 0:01:20]} 17. Qg4 {[%emt 0:00:32]} Rf6 {[%emt 0:00:28]} 18. f4 {[%emt 0:00:39]} c5 {[%emt 0:00:30]} 19. Nf3 {[%emt 0:00:43]} Nc6 {[%emt 0:00:55]} 20. e5 {[%emt 0:00:52]} Rf5 {[%emt 0:00:50]} 21. exd6 {[%emt 0:01:13]} Bxd6 {[%emt 0:00:28]} 22. Nh4 {[%emt 0:00:26]} Rf6 {[%emt 0:00:28]} 23. Be3 {[%emt 0:01:22]} e5 {[%emt 0:01:15]} 24. f5 {[%emt 0:01:02]} Ra7 {[%emt 0:00:42]} 25. Rad1 {[%emt 0:00:37]} Raf7 {[%emt 0:00:33]} 26. Qe4 {[%emt 0:01:34]} Nd4 {[%emt 0:03:26]} 27. c3 {[%emt 0:00:30]} Ne2+ {[%emt 0:00:54]} 28. Kh1 {[%emt 0:00:29]} g5 {[%emt 0:00:38]} 29. Nf3 {[%emt 0:01:56]} Nf4 {[%emt 0:00:58]} 30. g3 {[%emt 0:00:54]} Nh5 {[%emt 0:00:49]} 31. Kg2 {[%emt 0:01:51]} Qb7 {[%emt 0:02:23]} 32. Qxb7 Rxb7 {[%emt 0:00:26]} 33. Rd5 {[%emt 0:01:48]} c4 {[%emt 0:00:48]} 34. Nxe5 {[%emt 0:00:38]} Bxe5 {[%emt 0:01:06]} 35. Rxe5 {[%emt 0:00:27]} Ng7 {[%emt 0:00:38]} 36. Bd4 {[%emt 0:00:39]} Rff7 {[%emt 0:01:20]} 37. g4 {[%emt 0:00:46]} Rb8 {[%emt 0:01:11]} 38. Rfe1 {[%emt 0:00:45]} a5 {[%emt 0:01:07]} 39. Re7 {[%emt 0:00:43]} Rb7 {[%emt 0:00:49]} 40. Rxb7 Rxb7 {[%emt 0:00:27]} 41. f6 {[%emt 0:00:55]} 1-0

[Event "9th RTU Rapid 2019"]
[Site "Riga"]
[Date "2019.08.04"]
[Round "6.21"]
[White "Mohite, Ranveer"]
[Black "Low, Zhen Yu Cyrus"]
[Result "1/2-1/2"]
[WhiteElo "1935"]
[BlackElo "2169"]
[PlyCount "137"]
[EventDate "2019.08.05"]
[EventType "swiss"]
[EventCountry "LAT"]
[TimeControl "5400+30"]
[WhiteClock "0:00:37"]
[BlackClock "0:00:39"]

1. e4 {[%emt 1:15:22]} c5 {[%emt 1:15:25]} 2. Nf3 {[%emt 0:00:27]} Nc6 {[%emt 0:00:26]} 3. d4 {[%emt 0:00:28]} cxd4 {[%emt 0:00:26]} 4. Nxd4 {[%emt 0:00:26]} Nf6 {[%emt 0:00:26]} 5. Nc3 {[%emt 0:00:26]} d6 {[%emt 0:00:25]} 6. Bg5 {[%emt 0:01:01]} e6 {[%emt 0:00:27]} 7. Qd2 {[%emt 0:00:28]} a6 {[%emt 0:00:26]} 8. O-O-O {[%emt 0:00:49]} Bd7 {[%emt 0:00:27]} 9. f4 {[%emt 0:00:28]} b5 {[%emt 0:00:27]} 10. Bxf6 gxf6 {[%emt 0:00:26]} 11. Nxc6 {[%emt 0:01:05]} Bxc6 {[%emt 0:00:27]} 12. Kb1 {[%emt 0:00:30]} Qb6 {[%emt 0:00:45]} 13. f5 {[%emt 0:00:38]} b4 {[%emt 0:03:12]} 14. Ne2 {[%emt 0:00:27]} e5 {[%emt 0:00:25]} 15. Ng3 {[%emt 0:00:37]} h5 {[%emt 0:00:26]} 16. h4 {[%emt 0:00:28]} Bh6 {[%emt 0:00:26]} 17. Qxd6 {[%emt 0:01:27]} Rd8 {[%emt 0:00:26]} 18. Qxd8+ {[%emt 0:00:28]} Qxd8 {[%emt 0:00:25]} 19. Rxd8+ {[%emt 0:00:27]} Kxd8 {[%emt 0:00:26]} 20. Be2 {[%emt 0:01:13]} Ke7 {[%emt 0:00:44]} 21. Bf3 {[%emt 0:01:04]} Be3 {[%emt 0:02:04]} 22. Nxh5 {[%emt 0:01:06]} Bf2 {[%emt 0:00:27]} 23. g4 {[%emt 0:01:23]} Rd8 {[%emt 0:00:38]} 24. g5 {[%emt 0:01:34]} fxg5 {[%emt 0:00:37]} 25. hxg5 {[%emt 0:00:26]} Rg8 {[%emt 0:00:38]} 26. f6+ {[%emt 0:00:49]} Kd7 {[%emt 0:00:49]} 27. Ng7 {[%emt 0:00:49]} Be3 {[%emt 0:00:34]} 28. g6 {[%emt 0:02:03]} fxg6 {[%emt 0:02:27]} 29. Bg4+ {[%emt 0:00:26]} Kd6 {[%emt 0:00:26]} 30. Rd1+ {[%emt 0:00:55]} Bd4 {[%emt 0:00:25]} 31. c3 {[%emt 0:01:49]} Bxe4+ {[%emt 0:01:01]} 32. Kc1 {[%emt 0:00:25]} bxc3 {[%emt 0:00:32]} 33. bxc3 {[%emt 0:00:27]} Rf8 {[%emt 0:02:28]} 34. cxd4 exd4 {[%emt 0:00:26]} 35. Rf1 {[%emt 0:03:24]} Bd5 {[%emt 0:00:30]} 36. a3 {[%emt 0:01:07]} Ke5 {[%emt 0:00:37]} 37. Kd2 {[%emt 0:00:59]} Bc4 {[%emt 0:01:47]} 38. Rf2 {[%emt 0:00:59]} Rxf6 {[%emt 0:01:11]} 39. Rxf6 Kxf6 {[%emt 0:00:26]} 40. Ne8+ {[%emt 0:00:56]} Ke7 {[%emt 0:00:30]} 41. Nc7 {[%emt 0:01:11]} Kd6 {[%emt 0:00:32]} 42. Ne8+ {[%emt 0:00:28]} Ke7 {[%emt 0:00:27]} 43. Nc7 {[%emt 0:00:26]} Kd6 {[%emt 0:00:26]} 44. Na8 {[%emt 0:00:54]} Kc5 {[%emt 0:01:47]} 45. Bc8 {[%emt 0:00:54]} Kc6 {[%emt 0:01:14]} 46. Bg4 {[%emt 0:00:49]} Bd5 {[%emt 0:00:35]} 47. Bc8 {[%emt 0:00:27]} Bc4 {[%emt 0:01:53]} 48. Bg4 {[%emt 0:00:32]} Bd5 {[%emt 0:01:18]} 49. Bc8 {[%emt 0:00:28]} Bc4 {[%emt 0:00:27]} 50. Ke1 {[%emt 0:00:42]} g5 {[%emt 0:00:31]} 51. Kd2 {[%emt 0:00:25]} a5 {[%emt 0:00:28]} 52. Ke1 {[%emt 0:00:36]} Bd3 {[%emt 0:00:39]} 53. Kd2 {[%emt 0:00:33]} Be4 {[%emt 0:00:26]} 54. Ba6 {[%emt 0:00:31]} Bh1 {[%emt 0:00:29]} 55. Bc8 {[%emt 0:00:27]} Kd6 {[%emt 0:00:29]} 56. Nb6 {[%emt 0:00:26]} Kc7 {[%emt 0:00:25]} 57. Nc4 {[%emt 0:00:31]} Kxc8 {[%emt 0:00:26]} 58. Nxa5 {[%emt 0:00:26]} g4 {[%emt 0:00:32]} 59. Nb3 {[%emt 0:00:28]} Kd7 {[%emt 0:00:38]} 60. Nxd4 Kd6 61. Ke3 {[%emt 0:00:58]} Ke5 {[%emt 0:00:53]} 62. Ne2 {[%emt 0:00:29]} Bc6 {[%emt 0:00:26]} 63. Ng3 {[%emt 0:00:27]} Bd7 {[%emt 0:00:30]} 64. Ne2 {[%emt 0:00:27]} Kd5 {[%emt 0:00:28]} 65. Kf4 {[%emt 0:00:28]} Kc4 {[%emt 0:00:26]} 66. Ng3 {[%emt 0:00:30]} Kb3 {[%emt 0:00:26]} 67. Ne4 {[%emt 0:00:26]} Kxa3 {[%emt 0:00:29]} 68. Nf6 {[%emt 0:00:26]} Bc8 {[%emt 0:00:27]} 69. Nxg4 1/2-1/2

[Event "9th RTU Rapid 2019"]
[Site "Riga"]
[Date "2019.08.04"]
[Round "6.22"]
[White "Nesteretz, Anatoliy"]
[Black "Sertbay, Huseyin"]
[Result "1-0"]
[WhiteElo "2317"]
[BlackElo "2066"]
[PlyCount "51"]
[EventDate "2019.08.05"]
[EventType "swiss"]
[EventCountry "LAT"]
[TimeControl "5400+30"]
[WhiteClock "0:00:06"]
[BlackClock "0:04:48"]

1. e4 {[%emt 1:15:24]} c6 {[%emt 1:15:21]} 2. d4 {[%emt 0:00:29]} d5 {[%emt 0:00:27]} 3. e5 {[%emt 0:00:28]} Bf5 {[%emt 0:00:26]} 4. c4 {[%emt 0:00:26]} e6 {[%emt 0:00:29]} 5. Nc3 {[%emt 0:00:30]} Ne7 {[%emt 0:01:21]} 6. a3 {[%emt 0:01:58]} Nd7 {[%emt 0:00:36]} 7. c5 {[%emt 0:00:45]} f6 {[%emt 0:02:30]} 8. f4 {[%emt 0:00:31]} fxe5 {[%emt 0:00:31]} 9. fxe5 {[%emt 0:00:28]} Ng6 {[%emt 0:00:59]} 10. Nf3 {[%emt 0:00:59]} Be7 {[%emt 0:00:34]} 11. Bd3 {[%emt 0:01:19]} O-O {[%emt 0:02:44]} 12. O-O {[%emt 0:01:02]} Qe8 {[%emt 0:03:50]} 13. b4 {[%emt 0:01:34]} Bg4 {[%emt 0:00:37]} 14. h3 {[%emt 0:00:53]} Bxf3 {[%emt 0:01:13]} 15. Rxf3 {[%emt 0:00:27]} Rxf3 {[%emt 0:02:21]} 16. Qxf3 {[%emt 0:00:30]} Qf7 {[%emt 0:02:12]} 17. Qxf7+ Kxf7 {[%emt 0:00:26]} 18. Be3 {[%emt 0:02:37]} Rf8 {[%emt 0:00:28]} 19. g3 {[%emt 0:02:02]} Bd8 {[%emt 0:00:45]} 20. b5 {[%emt 0:01:20]} Ne7 {[%emt 0:01:30]} 21. Rb1 {[%emt 0:00:44]} Ba5 {[%emt 0:00:52]} 22. Ne2 {[%emt 0:01:02]} Nf5 {[%emt 0:00:41]} 23. Bxf5 exf5 {[%emt 0:00:25]} 24. bxc6 bxc6 {[%emt 0:00:26]} 25. Rb7 {[%emt 0:01:34]} Ke8 {[%emt 0:00:40]} 26. Rxa7 {[%emt 0:01:10]} 1-0

[Event "9th RTU Rapid 2019"]
[Site "Riga"]
[Date "2019.08.04"]
[Round "6.23"]
[White "Reizniece-Ozola, Dana"]
[Black "Gagare, Shalmali"]
[Result "1-0"]
[WhiteElo "2261"]
[BlackElo "1984"]
[PlyCount "64"]
[EventDate "2019.08.05"]
[EventType "swiss"]
[EventCountry "LAT"]
[TimeControl "5400+30"]
[WhiteClock "0:00:10"]
[BlackClock "0:00:57"]

1. c4 {[%emt 1:15:23]} e5 {[%emt 1:15:27]} 2. Nc3 {[%emt 0:00:28]} Bb4 {[%emt 0:00:28]} 3. g3 {[%emt 0:00:27]} Bxc3 4. bxc3 {[%emt 0:00:27]} Nf6 {[%emt 0:01:07]} 5. Bg2 {[%emt 0:00:27]} O-O {[%emt 0:00:39]} 6. Nf3 {[%emt 0:00:34]} e4 {[%emt 0:00:51]} 7. Ng5 {[%emt 0:00:28]} Re8 {[%emt 0:01:18]} 8. Qc2 {[%emt 0:00:31]} d5 {[%emt 0:01:16]} 9. cxd5 {[%emt 0:00:29]} Qxd5 {[%emt 0:00:33]} 10. d4 {[%emt 0:02:21]} Bf5 {[%emt 0:02:59]} 11. O-O {[%emt 0:00:52]} Qd7 {[%emt 0:02:02]} 12. Qb3 {[%emt 0:02:55]} h6 {[%emt 0:02:30]} 13. Qxb7 {[%emt 0:02:06]} Nc6 {[%emt 0:01:42]} 14. g4 {[%emt 0:02:35]} Rab8 {[%emt 0:02:46]} 15. Qa6 {[%emt 0:00:27]} Nxg4 {[%emt 0:01:26]} 16. Nh3 {[%emt 0:00:48]} Nf6 {[%emt 0:01:06]} 17. Nf4 {[%emt 0:01:36]} g5 {[%emt 0:00:31]} 18. d5 {[%emt 0:00:30]} Rb6 {[%emt 0:01:20]} 19. dxc6 {[%emt 0:01:02]} Qxc6 {[%emt 0:00:32]} 20. Qa5 {[%emt 0:01:15]} Rb5 {[%emt 0:00:36]} 21. Qxa7 {[%emt 0:00:44]} gxf4 {[%emt 0:00:46]} 22. Bxf4 {[%emt 0:00:39]} Nd5 {[%emt 0:00:28]} 23. Bd2 {[%emt 0:01:59]} Nxc3 {[%emt 0:00:50]} 24. Bxc3 {[%emt 0:00:36]} Qxc3 {[%emt 0:00:27]} 25. Rac1 {[%emt 0:01:03]} Qa5 {[%emt 0:00:28]} 26. Qd4 {[%emt 0:01:16]} Qb6 {[%emt 0:00:35]} 27. Qc3 {[%emt 0:00:40]} Qg6 {[%emt 0:00:32]} 28. Kh1 {[%emt 0:00:28]} c5 {[%emt 0:00:32]} 29. Rg1 {[%emt 0:00:30]} Kh7 {[%emt 0:00:30]} 30. Bh3 {[%emt 0:00:30]} Bxh3 {[%emt 0:00:36]} 31. Rxg6 {[%emt 0:00:27]} fxg6 {[%emt 0:00:27]} 32. Qxh3 {[%emt 0:00:30]} Rh8 1-0

[Event "9th RTU Rapid 2019"]
[Site "Riga"]
[Date "2019.08.04"]
[Round "6.24"]
[White "Alvarado Ascanio, Francisco"]
[Black "Efremov, Vladislav"]
[Result "1/2-1/2"]
[WhiteElo "2166"]
[BlackElo "1956"]
[PlyCount "45"]
[EventDate "2019.08.05"]
[EventType "swiss"]
[EventCountry "LAT"]
[TimeControl "5400+30"]
[WhiteClock "0:13:45"]
[BlackClock "0:08:12"]

1. d4 {[%emt 1:15:21]} Nf6 {[%emt 1:15:21]} 2. c4 {[%emt 0:00:27]} e6 {[%emt 0:00:26]} 3. Nf3 {[%emt 0:00:27]} d5 {[%emt 0:00:27]} 4. Nc3 {[%emt 0:00:27]} c5 {[%emt 0:00:26]} 5. cxd5 {[%emt 0:00:31]} Nxd5 {[%emt 0:00:26]} 6. e4 {[%emt 0:00:38]} Nxc3 {[%emt 0:00:27]} 7. bxc3 {[%emt 0:00:26]} cxd4 8. cxd4 {[%emt 0:00:26]} Bb4+ {[%emt 0:00:52]} 9. Bd2 {[%emt 0:00:27]} Bxd2+ {[%emt 0:00:27]} 10. Qxd2 {[%emt 0:00:26]} O-O {[%emt 0:00:30]} 11. Bc4 {[%emt 0:00:52]} Nd7 {[%emt 0:00:39]} 12. O-O {[%emt 0:00:32]} b6 {[%emt 0:00:27]} 13. Rfe1 {[%emt 0:01:25]} Bb7 {[%emt 0:00:26]} 14. a4 {[%emt 0:00:32]} Rc8 {[%emt 0:00:31]} 15. Bd3 {[%emt 0:00:31]} Nf6 {[%emt 0:00:49]} 16. a5 {[%emt 0:01:34]} Qc7 {[%emt 0:01:08]} 17. axb6 {[%emt 0:00:35]} axb6 {[%emt 0:00:26]} 18. Rab1 {[%emt 0:00:59]} Rfd8 {[%emt 0:01:17]} 19. h3 {[%emt 0:04:12]} h6 {[%emt 0:00:34]} 20. Rbc1 {[%emt 0:01:00]} Qe7 {[%emt 0:00:41]} 21. Rb1 {[%emt 0:00:32]} Qc7 {[%emt 0:00:27]} 22. Rbc1 {[%emt 0:00:28]} Qe7 {[%emt 0:00:28]} 23. Rb1 {[%emt 0:00:58]} 1/2-1/2

[Event "9th RTU Rapid 2019"]
[Site "Riga"]
[Date "2019.08.04"]
[Round "6.25"]
[White "Babrauskas, Darius"]
[Black "Martinkus, Rolandas"]
[Result "1-0"]
[WhiteElo "1988"]
[BlackElo "2155"]
[PlyCount "59"]
[EventDate "2019.08.05"]
[EventType "swiss"]
[EventCountry "LAT"]
[TimeControl "5400+30"]
[WhiteClock "0:04:42"]
[BlackClock "0:08:09"]

1. e4 {[%emt 1:15:21]} d5 {[%emt 1:15:23]} 2. exd5 Qxd5 {[%emt 0:00:26]} 3. Nc3 {[%emt 0:00:53]} Qd8 {[%emt 0:00:26]} 4. d4 {[%emt 0:00:27]} g6 {[%emt 0:00:26]} 5. Bc4 {[%emt 0:00:27]} Nh6 {[%emt 0:00:30]} 6. Nf3 {[%emt 0:00:36]} Bg7 {[%emt 0:00:27]} 7. Qe2 {[%emt 0:02:52]} Nf5 {[%emt 0:00:49]} 8. Be3 {[%emt 0:00:32]} O-O {[%emt 0:01:05]} 9. Rd1 {[%emt 0:00:38]} Nd7 {[%emt 0:01:32]} 10. O-O {[%emt 0:00:42]} Nb6 {[%emt 0:00:44]} 11. Bb3 {[%emt 0:00:44]} c6 {[%emt 0:00:42]} 12. h3 {[%emt 0:00:36]} Nd5 {[%emt 0:00:40]} 13. Bg5 {[%emt 0:01:02]} h6 {[%emt 0:01:05]} 14. Bc1 {[%emt 0:00:26]} Nxc3 {[%emt 0:01:22]} 15. bxc3 {[%emt 0:00:26]} a5 {[%emt 0:00:44]} 16. a4 {[%emt 0:00:32]} b6 {[%emt 0:00:27]} 17. Rfe1 {[%emt 0:00:36]} b5 {[%emt 0:01:24]} 18. Ba3 {[%emt 0:01:34]} Ba6 {[%emt 0:00:36]} 19. Qd2 {[%emt 0:00:35]} bxa4 {[%emt 0:02:39]} 20. Bxa4 {[%emt 0:00:33]} Bb5 {[%emt 0:00:27]} 21. Bb3 {[%emt 0:00:26]} Nd6 {[%emt 0:02:08]} 22. Ne5 {[%emt 0:00:34]} Kh7 {[%emt 0:00:33]} 23. c4 {[%emt 0:01:21]} Bxe5 {[%emt 0:00:35]} 24. dxe5 {[%emt 0:01:05]} Nxc4 {[%emt 0:00:33]} 25. Qc3 {[%emt 0:00:26]} Nxa3 {[%emt 0:01:24]} 26. Rxd8 {[%emt 0:00:27]} Raxd8 {[%emt 0:00:48]} 27. Qxa5 {[%emt 0:00:59]} Ra8 {[%emt 0:00:37]} 28. Qb4 {[%emt 0:00:29]} e6 {[%emt 0:00:51]} 29. c4 {[%emt 0:00:33]} c5 {[%emt 0:00:25]} 30. Qxc5 {[%emt 0:00:59]} 1-0